lending/lending_fUSD_20251121
["ID","MTS","AMOUNT","RATE_DAILY","PERIOD"]
[394544663,1763683212922,500.0,0.00041929,30]
[394544664,1763683219268,554.6554549,0.00041929,30]
[394544665,1763683236875,200.18,7.971e-05,2]
[394544666,1763683237070,200.18,8.391e-05,2]
[394544667,1763683237286,200.18,8.81e-05,2]
[394544668,1763683237511,200.18,9.23e-05,2]
[394544669,1763683237728,200.18,9.649e-05,2]
[394544670,1763683237929,200.18,0.00010069,2]
[394544671,1763683238132,200.18,0.00010488,2]
[394544672,1763683238329,200.18,0.00010908,2]
[394544673,1763683238545,200.18,0.00011327,2]
[394544674,1763683238734,200.18,0.00011747,2]
[394544675,1763683238952,200.18,0.00012166,2]
[394544676,1763683239194,200.18,0.00012586,2]
[394544677,1763683239403,200.18,0.00013005,2]
[394544678,1763683239618,200.18,0.00013425,2]
[394544679,1763683240079,200.18,0.00013844,2]
[394544680,1763683240417,200.18,0.00014264,2]
[394544681,1763683240503,200.18,0.00014684,2]
[394544682,1763683240801,200.18,0.00015103,2]
[394544683,1763683241125,200.18,0.00015523,2]
[394544684,1763683241316,200.18,0.00015942,2]
[394544685,1763683269365,500.0,0.00041929,30]
[394544686,1763683274549,250.0,0.00041929,30]
[394544687,1763683309849,528.0,0.00035616,120]
[394544688,1763683322499,195.73,0.00031507,120]
[394544689,1763683328208,250.0,0.00041929,30]
[394544690,1763683332083,500.0,0.00041929,30]
[394544691,1763683332713,500.0,0.00041929,30]
[394544692,1763683361408,5560.28637102,0.00041929,30]
[394544694,1763683394604,250.0,0.00041929,30]
[394544695,1763683423681,155.55332734,0.00016082,2]
[394544696,1763683447264,500.0,0.00041929,30]
[394544697,1763683447939,250.0,0.00041929,30]
[394544698,1763683452690,500.0,0.00016082,2]
[394544701,1763683507897,500.0,0.00041929,30]
[394544703,1763683518330,250.0,0.00041929,30]
[394544710,1763683569899,250.0,0.00041929,30]
[394544711,1763683570882,500.0,0.00041929,30]
[394544712,1763683582629,5651.04,0.00015869,2]
[394544715,1763683627500,261.12980241,0.00041929,30]
[394544726,1763683645270,200.0,0.00015847,2]
[394544728,1763683664281,150.0,0.00015937,2]
[394544735,1763683686231,500.0,0.00041929,30]
[394544736,1763683687462,250.0,0.00041929,30]
[394544739,1763683719101,999.0,0.00015819,3]
[394544740,1763683746105,250.0,0.00041929,30]
[394544741,1763683746415,500.0,0.00041929,30]
[394544742,1763683766765,164.06876657,0.00016081,2]
[394544747,1763683784555,2117.00277681,0.00016164,2]
[394544750,1763683807432,500.0,0.00041929,30]
[394544751,1763683810097,500.0,0.00041929,30]
[394544764,1763683831742,-1015.72168011,0.00016182,2]
[394544765,1763683831754,-184.27831989,0.00016182,2]
[394544766,1763683831763,-252.0,0.00016182,2]
[394544767,1763683831773,-1082.30502687,0.00016182,2]
[394544768,1763683831785,-117.69497313,0.00016182,2]
[394544769,1763683831795,-300.0,0.00016182,2]
[394544770,1763683831805,-350.16336984,0.00016183,2]
[394544771,1763683831815,-850.28377703,0.00016183,2]
[394544772,1763683831929,-560.12000014,0.00016183,2]
[394544775,1763683831940,-364.74926,0.00016183,2]
[394544777,1763683831951,-834.786,0.00016183,2]
[394544779,1763683831963,-446.99893371,0.00016183,2]
[394544781,1763683831974,-416.20303398,0.00016183,2]
[394544783,1763683831985,-335.349535,0.00016183,2]
[394544786,1763683831997,-8092.92151329,0.00016183,2]
[394544789,1763683832015,-8785.46794685,0.00016183,2]
[394544791,1763683832024,-150.0,0.000162,2]
[394544793,1763683832036,-150.0,0.000162,2]
[394544795,1763683832045,-150.0,0.000162,2]
[394544797,1763683832054,-2294.92604652,0.00016214,2]
[394544799,1763683832063,-302.01,0.0001628,2]
[394544801,1763683832072,-2034.91494171,0.00016329,2]
[394544804,1763683832083,-260.01110482,0.00016329,2]
[394544806,1763683832093,-162.49134959,0.00016329,2]
[394544852,1763683837705,-169.51145041,0.00016329,2]
[394544854,1763683837715,-166.66,0.00016344,2]
[394544855,1763683837725,-550.0,0.00016413,2]
[394544857,1763683837735,-166.66,0.00016415,2]
[394544859,1763683837744,-9462.22,0.00016438,2]
[394544860,1763683837753,-922.41612027,0.00016438,2]
[394544861,1763683837763,-3667.84220619,0.00016445,2]
[394544862,1763683837774,-958.11274602,0.00016445,2]
[394544863,1763683837786,-662.94786441,0.00016445,2]
[394544864,1763683837800,-972.8,0.00016445,2]
[394544865,1763683837811,-1260.0,0.00016445,2]
[394544867,1763683837823,-1118.10003,0.00016445,2]
[394544869,1763683837843,-1360.18715338,0.00016445,2]
[394544871,1763683837852,-1189.43,0.00016445,2]
[394544873,1763683837862,-3142.9927055,0.00016647,2]
[394544875,1763683837871,-639.48789578,0.00016647,2]
[394544878,1763683837890,-480.35610043,0.00016647,2]
[394544880,1763683837972,-2608.62,0.00016647,2]
[394544884,1763683838718,63.34512928,0.00015937,2]
[394544885,1763683838743,1536.65487072,0.00015937,2]
[394544888,1763683840083,-1148.15896159,0.00016647,2]
[394544889,1763683840096,-3050.90123248,0.00016647,2]
[394544952,1763683843802,-1499.498,0.00016647,2]
[394544954,1763683843816,-878.4952,0.00016647,2]
[394544967,1763683846282,-3112.4,0.00016647,2]
[394544968,1763683846351,-20761.82353232,0.00016647,2]
[394544969,1763683846360,-151.0,0.00016647,2]
[394544970,1763683846370,-151.0,0.00016647,2]
[394544971,1763683846380,-151.0,0.00016647,2]
[394544972,1763683846390,-151.0,0.00016647,2]
[394544973,1763683846399,-151.0,0.00016647,2]
[394544974,1763683846409,-151.0,0.00016647,2]
[394544975,1763683846419,-168.807977,0.00016647,2]
[394544976,1763683846430,-2610.9568989,0.00016647,2]
[394544977,1763683846439,-166.66,0.00016668,2]
[394544978,1763683846449,-932.39881,0.0001671,2]
[394544979,1763683846459,-1087.815402,0.00016783,2]
[394544980,1763683846468,-301.12,0.000168,2]
[394544981,1763683846478,-417.12,0.000168,2]
[394544982,1763683846488,-177.45,0.000168,2]
[394544983,1763683846498,-932.39882,0.0001685,2]
[394544984,1763683846508,-428.98,0.00016868,2]
[394544985,1763683846517,-4464.9922488,0.00016883,2]
[394544986,1763683846527,-3255.2764309,0.00016883,2]
[394544987,1763683846536,-151.0,0.00016883,2]
[394544989,1763683846547,-427.46,0.000169,2]
[394544991,1763683846557,-301.14,0.000169,2]
[394544993,1763683846566,-300.0,0.00016907,3]
[394544994,1763683846576,-300.0,0.00016907,3]
[394544995,1763683846585,-300.0,0.00016907,3]
[394544996,1763683846594,-300.0,0.00016907,3]
[394544997,1763683846603,-300.0,0.00016907,3]
[394544998,1763683846612,-151.0,0.00016907,2]
[394545001,1763683846622,-151.0,0.00016907,2]
[394545003,1763683846631,-151.0,0.00016907,2]
[394545005,1763683846640,-1087.81540199,0.00016907,2]
[394545007,1763683846650,-166.66,0.00016957,2]
[394545011,1763683846659,-151.0,0.00016972,2]
[394545014,1763683846669,-151.0,0.00016972,2]
[394545017,1763683846679,-151.0,0.00016972,2]
[394545019,1763683846688,-500.0,0.00016973,2]
[394545020,1763683846698,-500.0,0.00016973,2]
[394545021,1763683846707,-500.0,0.00016973,2]
[394545022,1763683846716,-500.0,0.00016973,2]
[394545023,1763683846726,-500.0,0.00016973,2]
[394545024,1763683846735,-184.79730938,0.00016973,2]
[394545025,1763683846744,-597.05199518,0.00016973,2]
[394545026,1763683846754,-500.0,0.00016973,2]
[394545027,1763683846763,-500.0,0.00016973,2]
[394545028,1763683846773,-500.0,0.00016973,2]
[394545029,1763683846783,-479.10650421,0.00016973,2]
[394545030,1763683846794,-500.0,0.00016973,2]
[394545031,1763683846953,-500.0,0.00016973,2]
[394545032,1763683846964,-500.0,0.00016973,2]
[394545033,1763683846974,-500.0,0.00016973,2]
[394545034,1763683846983,-500.0,0.00016973,2]
[394545035,1763683846992,-500.0,0.00016973,2]
[394545036,1763683847002,-646.53878068,0.00016973,2]
[394545037,1763683847011,-500.0,0.00016973,2]
[394545038,1763683847019,-500.0,0.00016973,2]
[394545039,1763683847028,-913.55,0.00016973,2]
[394545040,1763683847037,-478.75,0.00016986,2]
[394545041,1763683847047,-957.5,0.00016986,2]
[394545042,1763683847055,-478.75,0.00016986,2]
[394545043,1763683847064,-478.75,0.00016986,2]
[394545044,1763683847073,-166.66,0.00016992,2]
[394545045,1763683847083,-500.0,0.00016999,2]
[394545046,1763683847092,-512.06520469,0.00016999,2]
[394545047,1763683847100,-500.0,0.00016999,2]
[394545048,1763683847108,-500.0,0.00016999,2]
[394545049,1763683847116,-535.90375237,0.00016999,2]
[394545050,1763683847125,-500.0,0.00016999,2]
[394545051,1763683847135,-563.19448325,0.00016999,2]
[394545052,1763683847143,-397.10642917,0.00016999,2]
[394545053,1763683847151,-293570.17621944,0.00017,2]
[394545054,1763683847366,-1585.57444177,0.00017,2]
[394545055,1763683867993,314.44366727,0.00041929,30]
[394545061,1763683917297,150.0,0.00015937,2]
[394545062,1763683917815,150.0,0.00015937,120]
[394545065,1763684045417,500.0,0.00041929,30]
[394545079,1763684113237,500.0,0.00041929,30]
[394545080,1763684116042,3597.0,0.00035616,120]
[394545081,1763684125102,500.0,0.00041929,30]
[394545108,1763684166357,500.0,0.00041929,30]
[394545109,1763684169134,500.0,0.00041929,30]
[394545110,1763684179488,1268.55,0.00041929,120]
[394545111,1763684225731,500.0,0.00041929,120]
[394545112,1763684225819,500.0,0.00041929,120]
[394545114,1763684272649,426.43191686,0.00035616,120]
[394545115,1763684286778,500.0,0.00041929,120]
[394545116,1763684287402,500.0,0.00041929,120]
[394545123,1763684347573,500.0,0.00041929,120]
[394545133,1763684418529,500.0,0.00041932,120]
[394545134,1763684419135,500.0,0.00041932,120]
[394545135,1763684419747,500.0,0.00041932,120]
[394545137,1763684474451,250.0,0.00041932,120]
[394545139,1763684530697,283.02913119,0.00041932,120]
[394545140,1763684533663,250.0,0.00041932,120]
[394545141,1763684588770,250.0,0.00041932,120]
[394545142,1763684589371,250.0,0.00041932,120]
[394545143,1763684653627,250.0,0.00041932,120]
[394545144,1763684654441,353.76080498,0.00041932,120]
[394545145,1763684654560,1852.42,0.00016163,2]
[394545146,1763684710178,3080.86452149,0.000154,2]
[394545147,1763684716140,250.0,0.00041932,120]
[394545148,1763684716754,250.0,0.00041932,120]
[394545149,1763684828857,250.0,0.00041932,120]
[394545150,1763684829696,250.0,0.00041932,120]
[394545181,1763684833132,250.0,0.00041932,120]
[394545182,1763684833723,250.0,0.00041932,120]
[394545187,1763684884262,3380.07060779,0.0001439,2]
[394545188,1763684884286,4283.42987216,0.0001439,2]
[394545189,1763684887408,250.0,0.00041932,120]
[394545190,1763684897319,5716.58012784,0.00015,2]
[394545191,1763684897343,4453.97385056,0.00015,2]
[394545192,1763684899110,426.43191686,0.00035616,120]
[394545193,1763684915028,1464.09267255,0.00041932,120]
[394545194,1763684918008,2957.11166576,0.00013699,2]
[394545195,1763684946700,250.0,0.00041932,120]
[394545196,1763684950641,250.0,0.00041932,120]
[394545197,1763684964439,2588.92448368,0.00016065,2]
[394545198,1763684964467,162.07551632,0.00016065,2]
[394545200,1763685011697,250.0,0.00041932,120]
[394545201,1763685016063,250.0,0.00041932,120]
[394545207,1763685031855,-586.80506096,0.00016188,2]
[394545209,1763685031899,-2205.88592063,0.00016188,2]
[394545210,1763685031911,-731.31901841,0.00016188,2]
[394545211,1763685032062,-456.68098159,0.00016199,2]
[394545212,1763685032075,-743.31901841,0.00016199,2]
[394545213,1763685032085,-300.0,0.00016199,2]
[394545214,1763685032095,-300.0,0.00016199,2]
[394545215,1763685032106,-1200.0,0.00016199,2]
[394545217,1763685032116,-4210.3142454,0.000162,5]
[394545220,1763685032156,-704.890961,0.000162,5]
[394545221,1763685032168,-259.11,0.000162,5]
[394545222,1763685032180,-1166.29311697,0.000162,5]
[394545223,1763685032196,-1769.97305483,0.000162,5]
[394545224,1763685032209,-293.801,0.000162,5]
[394545225,1763685032221,-4012.61299971,0.000162,5]
[394545226,1763685032234,-159.59326854,0.00016344,2]
[394545227,1763685032249,-840.40673146,0.00016344,2]
[394545228,1763685032260,-1000.0,0.00016344,2]
[394545229,1763685032271,-385.0,0.00016344,2]
[394545230,1763685032280,-180.27654404,0.00016344,2]
[394545231,1763685032291,-180.27654404,0.00016344,2]
[394545232,1763685032301,-487.4605,0.0001683,2]
[394545233,1763685032311,-2036.5913706,0.0001685,2]
[394545234,1763685032321,-4668.43309272,0.0001685,2]
[394545235,1763685032331,-500.0,0.00016863,2]
[394545237,1763685032340,-500.0,0.00016864,2]
[394545239,1763685032350,-666.61787414,0.0001687,2]
[394545241,1763685032362,-797.4747994,0.0001687,2]
[394545242,1763685032372,-455.68367891,0.00016873,2]
[394545243,1763685032381,-500.0,0.00016873,2]
[394545244,1763685032392,-118.64924441,0.00016873,2]
[394545253,1763685037905,-382.33665672,0.00016873,2]
[394545254,1763685037915,-500.0,0.00016873,2]
[394545255,1763685037924,-300.0,0.00016883,2]
[394545256,1763685037934,-1099.18,0.00016898,2]
[394545257,1763685037943,-277.97450042,0.00016899,2]
[394545258,1763685037953,-614.28874635,0.00016899,2]
[394545259,1763685037962,-293.81684663,0.00016899,2]
[394545260,1763685038145,-225.63588723,0.00016899,2]
[394545261,1763685038155,-429.54226391,0.00016899,2]
[394545262,1763685038166,-151.0034411,0.00016899,2]
[394545263,1763685038176,-868.785,0.000169,2]
[394545264,1763685038187,-438048.01827997,0.000169,2]
[394545266,1763685038199,-487.46051,0.0001695,2]
[394545268,1763685038208,-2036.59137052,0.00016967,2]
[394545270,1763685038218,-4668.43309269,0.00016967,2]
[394545272,1763685038228,-500.96983964,0.00016973,2]
[394545274,1763685038239,-500.0,0.00016973,2]
[394545276,1763685038249,-500.0,0.00016973,2]
[394545278,1763685038259,-504.10346457,0.00016973,2]
[394545279,1763685038268,-168.58657541,0.00016973,2]
[394545280,1763685038278,-500.0,0.00016973,2]
[394545281,1763685038288,-500.0,0.00016973,2]
[394545282,1763685038299,-500.0,0.00016973,2]
[394545283,1763685038309,-196.23949712,0.00016973,2]
[394545284,1763685038319,-500.0,0.00016973,2]
[394545285,1763685038329,-181.55612593,0.00016973,2]
[394545286,1763685038339,-500.0,0.00016973,2]
[394545287,1763685038349,-500.0,0.00016973,2]
[394545288,1763685038359,-500.0,0.00016973,2]
[394545289,1763685038368,-263.72276434,0.00016973,2]
[394545290,1763685038378,-504.65985304,0.00016973,2]
[394545291,1763685038387,-500.0,0.00016973,2]
[394545292,1763685038397,-500.0,0.00016973,2]
[394545293,1763685038407,-500.0,0.00016973,2]
[394545294,1763685038416,-600.29489185,0.00016973,2]
[394545295,1763685038426,-500.0,0.00016973,2]
[394545296,1763685038435,-500.0,0.00016973,2]
[394545297,1763685038445,-500.0,0.00016973,2]
[394545298,1763685038454,-500.0,0.00016973,2]
[394545299,1763685038464,-500.0,0.00016973,2]
[394545300,1763685038475,-505.0755916,0.00016973,2]
[394545301,1763685038485,-500.0,0.00016973,2]
[394545302,1763685038494,-500.0,0.00016973,2]
[394545303,1763685038506,-1011.17,0.00016973,2]
[394545304,1763685038516,-151.0,0.00016988,2]
[394545305,1763685038530,-151.0,0.00016988,2]
[394545306,1763685038541,-151.0,0.00016988,2]
[394545307,1763685038551,-151.0,0.00016988,2]
[394545308,1763685038560,-151.0,0.00016988,2]
[394545309,1763685038571,-151.0,0.00016988,2]
[394545310,1763685038581,-151.0,0.00016988,2]
[394545311,1763685038591,-151.0,0.00016988,2]
[394545312,1763685038601,-151.0,0.00016988,2]
[394545313,1763685038611,-151.0,0.00016988,2]
[394545314,1763685038622,-151.0,0.00016988,2]
[394545315,1763685038633,-151.0,0.00016988,2]
[394545316,1763685038643,-151.0,0.00016988,2]
[394545317,1763685038654,-151.0,0.00016988,2]
[394545318,1763685038664,-151.0,0.00016988,2]
[394545319,1763685038674,-297.65800971,0.00016988,2]
[394545320,1763685038685,-18789.3019368,0.00016998,2]
[394545321,1763685038695,-286500.9859385,0.00016998,2]
[394545322,1763685038705,-38748.4181171,0.00016998,2]
[394545323,1763685038717,-21793.297796,0.00016998,2]
[394545324,1763685038727,-214.4442146,0.00016998,2]
[394545325,1763685038737,-151.0,0.00016998,2]
[394545326,1763685038746,-151.0,0.00016998,2]
[394545327,1763685038757,-151.0,0.00016998,2]
[394545328,1763685038766,-151.0,0.00016998,2]
[394545329,1763685038776,-151.0,0.00016998,2]
[394545330,1763685038785,-500.0,0.00016999,2]
[394545331,1763685038796,-500.0,0.00016999,2]
[394545332,1763685038805,-500.0,0.00016999,2]
[394545333,1763685038816,-500.0,0.00016999,2]
[394545334,1763685038825,-636.53,0.00016999,2]
[394545335,1763685038835,-500.0,0.00016999,2]
[394545336,1763685038845,-273.94295942,0.00016999,2]
[394545337,1763685038856,-500.0,0.00016999,2]
[394545338,1763685038866,-500.0,0.00016999,2]
[394545339,1763685038876,-523.46270611,0.00016999,2]
[394545340,1763685038886,-523.73624861,0.00016999,2]
[394545341,1763685038897,-500.0,0.00016999,2]
[394545342,1763685038907,-500.0,0.00016999,2]
[394545343,1763685038918,-500.0,0.00016999,2]
[394545344,1763685038927,-473.27692908,0.00016999,2]
[394545345,1763685038937,-500.0,0.00016999,2]
[394545346,1763685038947,-500.0,0.00016999,2]
[394545347,1763685038957,-522.12011615,0.00016999,2]
[394545348,1763685038967,-502.75596404,0.00016999,2]
[394545349,1763685038978,-500.0,0.00016999,2]
[394545350,1763685038989,-500.0,0.00016999,2]
[394545351,1763685038999,-500.0,0.00016999,2]
[394545352,1763685039009,-500.0,0.00016999,2]
[394545353,1763685039020,-231254.25355164,0.00017,2]
[394545354,1763685039030,-224.33,0.00017,21]
[394545355,1763685039041,-250.0,0.00017,2]
[394545356,1763685039053,-151.0,0.00017,2]
[394545357,1763685039064,-183.66039431,0.00017,2]
[394545358,1763685039075,-696.19192311,0.00017,2]
[394545359,1763685039085,-479.05,0.00017,2]
[394545360,1763685039095,-177.5,0.00017,2]
[394545361,1763685039107,-177.5,0.00017,2]
[394545362,1763685039118,-151.0,0.00017,2]
[394545363,1763685039129,-38663.46796944,0.00017,2]
[394545364,1763685039141,-151.0,0.00017,2]
[394545365,1763685039151,-2036.59137052,0.00017083,2]
[394545366,1763685039162,-589.687031,0.000171,2]
[394545367,1763685039173,-500.0,0.00017184,2]
[394545368,1763685039184,-302.01,0.00017185,2]
[394545369,1763685039197,-2036.59137052,0.000172,2]
[394545370,1763685039207,-487.4605,0.0001721,2]
[394545371,1763685039218,-151.0,0.00017242,2]
[394545372,1763685039231,-151.0,0.00017242,2]
[394545373,1763685039242,-1600.0,0.00017243,2]
[394545374,1763685039254,-831.0,0.00017243,2]
[394545375,1763685039264,-936.507,0.00017243,2]
[394545376,1763685039277,-1256.0,0.00017243,2]
[394545377,1763685039287,-1191.0,0.00017243,2]
[394545378,1763685039298,-907.0,0.00017243,2]
[394545379,1763685039308,-160.296,0.00017243,2]
[394545380,1763685039322,-1605.0,0.00017243,2]
[394545381,1763685039333,-1319.0,0.00017243,2]
[394545382,1763685039344,-1011.17,0.00017247,2]
[394545383,1763685039354,-2036.59137052,0.00017317,2]
[394545384,1763685039364,-150.0,0.00017331,2]
[394545385,1763685039374,-150.0,0.00017331,2]
[394545386,1763685039384,-150.0,0.00017331,2]
[394545387,1763685039395,-150.0,0.00017331,2]
[394545388,1763685039406,-150.0,0.00017331,2]
[394545389,1763685039416,-150.0,0.00017331,2]
[394545390,1763685039427,-251.483,0.00017331,2]
[394545391,1763685039437,-150.0,0.00017331,2]
[394545392,1763685039447,-150.0,0.00017331,2]
[394545393,1763685039457,-300.0,0.00017387,2]
[394545394,1763685039466,-346.78251701,0.00017421,2]
[394545395,1763685039476,-1000.0,0.00017421,2]
[394545396,1763685039486,-487.46051,0.0001745,2]
[394545397,1763685039497,-166.66,0.00017499,2]
[394545398,1763685039508,-573.88834663,0.00017521,2]
[394545399,1763685039518,-1000.0,0.00017521,2]
[394545400,1763685039528,-1000.0,0.00017521,2]
[394545401,1763685039538,-1000.0,0.00017521,2]
[394545402,1763685039548,-1000.0,0.00017521,2]
[394545403,1763685039559,-501.87365056,0.00017521,2]
[394545404,1763685039569,-569.5879799,0.00017521,2]
[394545405,1763685039579,-500.0,0.00017521,2]
[394545406,1763685039589,-562.46189258,0.00017521,2]
[394545407,1763685039599,-1000.0,0.00017521,2]
[394545408,1763685039609,-1000.0,0.00017521,2]
[394545409,1763685039620,-1000.0,0.00017521,2]
[394545410,1763685039630,-1000.0,0.00017521,2]
[394545411,1763685039641,-1000.0,0.00017521,2]
[394545412,1763685039651,-1000.0,0.00017521,2]
[394545413,1763685039662,-1000.0,0.00017521,2]
[394545414,1763685039673,-1011.17,0.00017521,2]
[394545415,1763685039685,-215.75206643,0.00017538,2]
[394545416,1763685039696,-600.0,0.00017652,2]
[394545417,1763685039708,-226.2,0.00017696,2]
[394545418,1763685039720,-487.46051,0.000177,2]
[394545419,1763685039736,-480.0,0.00017707,2]
[394545420,1763685039747,-420.0,0.00017707,2]
[394545421,1763685039759,-420.0,0.00017707,2]
[394545422,1763685039770,-151.0,0.00017789,2]
[394545423,1763685039782,-151.0,0.00017789,2]
[394545424,1763685039793,-1011.17,0.00017795,2]
[394545425,1763685039804,-1680.0,0.00017796,2]
[394545426,1763685039815,-300.0,0.00017806,2]
[394545427,1763685039826,-300.0,0.00017806,2]
[394545428,1763685039838,-300.0,0.00017806,2]
[394545429,1763685039851,-4350.67888005,0.00017806,4]
[394545430,1763685039862,-354.34,0.00017806,2]
[394545431,1763685039875,-300.0,0.00017806,2]
[394545432,1763685039889,-300.0,0.00017806,2]
[394545433,1763685039902,-250.0,0.00017806,2]
[394545434,1763685039913,-5966.54031471,0.00017806,4]
[394545435,1763685039926,-250.0,0.00017806,2]
[394545436,1763685039937,-193.70507279,0.00017806,2]
[394545437,1763685039950,-5776.53700415,0.000179,2]
[394545438,1763685039961,-472.9725,0.000179,2]
[394545439,1763685039973,-500.0,0.000179,2]
[394545440,1763685039983,-500.0,0.000179,2]
[394545441,1763685039994,-500.0,0.000179,2]
[394545443,1763685040005,-500.0,0.000179,2]
[394545446,1763685040016,-500.0,0.000179,2]
[394545448,1763685040027,-500.0,0.000179,2]
[394545449,1763685040040,-500.0,0.000179,2]
[394545450,1763685040050,-433.40860683,0.000179,2]
[394545451,1763685040060,-592.73989998,0.000179,2]
[394545452,1763685040070,-1600.0,0.00017929,2]
[394545453,1763685040080,-487.4605,0.0001795,2]
[394545454,1763685040091,-244.55435576,0.00017963,2]
[394545455,1763685040102,-1500.0,0.00017968,2]
[394545456,1763685040112,-500.0,0.00017973,2]
[394545457,1763685040123,-500.0,0.00017973,2]
[394545458,1763685040134,-500.0,0.00017973,2]
[394545459,1763685040146,-178.99807806,0.00017973,2]
[394545460,1763685040160,-500.0,0.00017973,2]
[394545461,1763685040171,-500.99618926,0.00017973,2]
[394545462,1763685040182,-500.0,0.00017973,2]
[394545463,1763685040196,-500.0,0.00017973,2]
[394545464,1763685040207,-500.0,0.00017973,2]
[394545465,1763685040329,-500.0,0.00017973,2]
[394545466,1763685040339,-500.0,0.00017973,2]
[394545467,1763685040348,-500.0,0.00017973,2]
[394545468,1763685040358,-500.0,0.00017973,2]
[394545469,1763685040368,-500.0,0.00017973,2]
[394545470,1763685040379,-464.88935143,0.00017973,2]
[394545471,1763685040388,-500.0,0.00017973,2]
[394545472,1763685040398,-501.84520062,0.00017973,2]
[394545473,1763685040408,-500.0,0.00017973,2]
[394545474,1763685040418,-244.55435576,0.0001799,2]
[394545475,1763685040427,-244.55435576,0.0001799,2]
[394545476,1763685040438,-300.0,0.00017999,2]
[394545477,1763685040449,-300.0,0.00017999,2]
[394545478,1763685040459,-1031.4582,0.00017999,2]
[394545479,1763685040470,-300.0,0.00017999,2]
[394545480,1763685040480,-500.0,0.00017999,2]
[394545481,1763685040490,-500.0,0.00017999,2]
[394545482,1763685040502,-500.0,0.00017999,2]
[394545483,1763685040512,-183.84,0.00017999,2]
[394545484,1763685040523,-1611.0,0.00018,2]
[394545485,1763685040538,-478.75,0.00018,2]
[394545486,1763685040548,-483028.28119125,0.00018,2]
[394545487,1763685040563,-386.87470187,0.00018,2]
[394545488,1763685040579,-1640.6741766,0.00018,2]
[394545489,1763685040608,-2346.54125902,0.00018,2]
[394545492,1763685040885,-874.4544,0.00017243,2]
[394545493,1763685040897,-431.06548687,0.00017243,2]
[394545501,1763685045373,-4668.43309269,0.00017083,2]
[394545502,1763685045384,-2128.48011313,0.00017243,2]
[394545503,1763685045395,-2036.59137052,0.00017433,2]
[394545504,1763685045407,-226.5,0.00017973,2]
[394545505,1763685045419,-151.0,0.00017973,2]
[394545506,1763685045429,-12703.14501729,0.00018,2]
[394545508,1763685046231,-472.9725,0.00018,2]
[394545509,1763685068371,250.0,0.00041932,30]
[394545513,1763685173763,-1406.4577,0.00016245,2]
[394545514,1763685187798,250.0,0.00041932,30]
[394545516,1763685250458,250.0,0.00041932,30]
[394545518,1763685254182,395.698345,0.00041932,30]
[394545519,1763685263236,154.37,0.00041932,120]
[394545521,1763685288391,218.6,0.00016115,2]
[394545522,1763685313084,393.26147194,0.00041932,120]
[394545523,1763685436487,150.0,0.00041932,30]
[394545528,1763685519226,426.43191686,0.00035616,120]
[394545531,1763685535275,160.0,0.000356,120]
[394545532,1763685536104,160.0,0.000356,120]
[394545533,1763685544931,160.0,0.000356,120]
[394545535,1763685558702,160.0,0.000356,120]